bitfinex-derivatives/quotes_ETHF0:USTF0_20250520
["timestamp","ask_amount","ask_price","bid_price","bid_amount"]
[1747733481456,7.765955,2530.6,2530.5,2.82486477]
[1747733481640,9.040155,2530.6,2530.5,2.82486477]
[1747733481841,4.040155,2530.6,2530.5,2.82486477]
[1747733487348,2.765955,2530.6,2530.5,2.82486477]
[1747733488159,4.077955,2530.6,2530.5,2.82486477]
[1747733490151,4.077955,2530.6,2530.5,0.08486477]
[1747733491052,2.765955,2530.6,2530.5,0.08486477]
[1747733492060,2.765955,2530.6,2530.5,2.82486477]
[1747733492953,2.765955,2530.6,2530.5,4.13236477]
[1747733493156,0.00593272,2530.8,2530.5,14.31601977]
[1747733493370,0.00593272,2530.8,2530.7,0.79006]
[1747733493554,2.87860921,2531.2,2531.1,0.78994]
[1747733493757,2.87860921,2531.2,2531.1,3.99774]
[1747733493958,2.87860921,2531.2,2531.1,5.973125]
[1747733494355,3.66851921,2531.2,2531.1,5.973125]
[1747733494556,1.97425,2531.9,2531.4,0.78985]
[1747733494862,1.97417,2532.0,2531.4,5.972805]
[1747733495159,0.78979,2531.6,2531.4,13.712805]
[1747733495461,0.78979,2531.6,2531.4,8.712805]
[1747733495762,2.42916853,2531.5,2531.4,8.712805]
[1747733496060,1.63935853,2531.5,2531.4,8.712805]
[1747733496261,1.63935853,2531.5,2531.4,13.712805]
[1747733496462,1.63935853,2531.5,2531.4,8.712805]
[1747733496662,2.42917853,2531.5,2531.4,8.712805]
[1747733496961,0.78982,2531.5,2531.4,8.712805]
[1747733497260,3.54114966,2532.6,2532.2,0.78957]
[1747733497464,0.78953,2532.4,2532.3,1.2548]
[1747733498057,2.76398,2532.4,2532.3,3.9948]
[1747733498660,0.78953,2532.4,2532.3,3.9948]
[1747733499262,0.78953,2532.4,2532.3,5.96924999]
[1747733500762,0.78953,2532.4,2532.3,3.9948]
[1747733501067,2.76398,2532.4,2532.3,3.9948]
[1747733501664,0.78953,2532.4,2532.3,3.9948]
[1747733503564,0.78953,2532.4,2532.3,5.96924999]
[1747733504064,2.76398,2532.4,2532.3,4.71444999]
[1747733504268,0.78978,2531.6,2531.5,0.26023322]
[1747733504468,0.78978,2531.6,2531.5,1.54193322]
[1747733504674,2.764855,2531.6,2531.5,1.54193322]
[1747733504968,2.764855,2531.6,2531.5,0.26023322]
[1747733505370,0.78985,2531.4,2531.3,0.00593272]
[1747733505763,2.76508001,2531.4,2531.3,0.00593272]
[1747733506265,2.76508001,2531.4,2531.3,2.74593272]
[1747733506570,4.07838001,2531.4,2531.3,2.74593272]
[1747733507661,8.28853001,2531.4,2530.5,3.29266477]
[1747733507862,1.3133,2531.4,2530.5,3.29266477]
[1747733508063,0.78998,2531.0,2530.9,0.79]
[1747733508262,0.78998,2531.0,2530.9,3.2078]
[1747733508463,0.78998,2531.0,2530.9,5.18334499]
[1747733509066,0.78998,2531.0,2530.9,6.55014499]
[1747733509266,0.78995,2531.1,2530.9,9.29014499]
[1747733509565,0.78997,2531.0,2530.9,7.3146]
[1747733510068,0.78997,2531.0,2530.9,9.29014499]
[1747733510269,2.765515,2531.0,2530.9,4.1068]
[1747733510662,2.765515,2531.0,2530.9,2.74]
[1747733511063,0.79003,2530.8,2530.7,1.37273272]
[1747733511865,3.2078,2531.2,2530.7,3.34843272]
[1747733512070,2.28734078,2532.2,2532.1,0.78963]
[1747733512270,2.28734078,2532.2,2532.1,3.99743]
[1747733512568,2.28734078,2532.2,2532.1,10.972035]
[1747733512961,1.3417,2532.7,2532.1,10.182405]
[1747733513167,0.00593272,2532.4,2532.3,0.78957]
[1747733513369,0.00593272,2532.4,2532.3,3.99737]
[1747733513674,0.00593272,2532.4,2532.3,5.97181999]
[1747733514067,0.00593272,2532.4,2532.3,8.71181999]
[1747733514764,0.00593272,2532.4,2532.3,13.71181999]
[1747733515862,0.00593272,2532.4,2532.3,15.03751999]
[1747733516067,0.00593272,2532.4,2532.3,13.06307]
[1747733516282,0.00593272,2532.4,2532.3,15.03751999]
[1747733517471,0.00593272,2532.4,2532.3,10.03751999]
[1747733518877,1.99,2532.8,2532.7,0.78944]
[1747733519074,0.78936,2533.0,2532.9,0.78938]
[1747733519471,2.74916,2533.3,2533.2,0.78928]
[1747733519669,2.74916,2533.3,2533.2,3.99708]
[1747733520077,1.9599,2533.3,2533.2,5.97083]
[1747733520579,1.9599,2533.3,2533.2,7.35133]
[1747733520873,0.6841,2533.5,2533.2,7.35133]
[1747733520874,1.47332,2533.5,2533.2,6.56205]
[1747733521074,3.89189739,2533.5,2533.4,0.78922]
[1747733521272,0.7892,2533.5,2533.4,0.7892]
[1747733521469,2.762795,2533.5,2533.4,0.7892]
[1747733521672,0.78922,2533.4,2533.3,2.13252]
[1747733521979,2.15472,2533.4,2533.3,2.13252]
[1747733522172,2.15472,2533.4,2533.3,4.71366999]
[1747733522374,2.15472,2533.4,2533.3,5.50291999]
[1747733522880,2.15472,2533.4,2533.3,6.84621999]
[1747733523180,1.3655,2533.4,2533.3,6.84621999]
[1747733523380,0.78918,2533.6,2533.5,0.78919]
[1747733523579,0.78918,2533.6,2533.5,3.99699]
[1747733523970,3.99697739,2533.6,2533.5,3.2078]
[1747733524177,5.9704924,2533.6,2533.5,5.9478]
[1747733524375,5.9704924,2533.6,2533.5,2.74]
[1747733524771,5.9704924,2533.6,2533.5,6.73699]
[1747733524968,0.78918,2533.6,2533.5,6.73699]
[1747733525175,5.9704924,2533.6,2533.5,5.9478]
[1747733525974,10.9704924,2533.6,2533.5,5.9478]
[1747733526173,10.9704924,2533.6,2533.5,3.2078]
[1747733526380,5.9704924,2533.6,2533.5,3.2078]
[1747733527281,2.76269501,2533.6,2533.5,3.2078]
[1747733527579,1.97351501,2533.6,2533.5,3.99699]
[1747733527782,0.78916,2533.6,2533.5,5.970475]
[1747733527984,5.9704724,2533.6,2533.5,3.2078]
[1747733528174,5.9704724,2533.6,2533.5,5.9478]
[1747733529285,5.9704724,2533.6,2533.5,3.2078]
[1747733529981,2.76267501,2533.6,2533.5,3.2078]
[1747733532382,5.9704724,2533.6,2533.5,3.2078]
[1747733534382,16.1002224,2533.6,2533.2,3.03807046]
[1747733534682,0.78925,2533.3,2533.2,3.03807046]
[1747733535072,5.9707974,2533.3,2533.2,3.03807046]
[1747733536183,0.78932,2533.1,2533.0,0.00592101]
[1747733536680,5.97102239,2533.1,2533.0,0.00592101]
[1747733536880,7.27162239,2533.1,2533.0,0.00592101]
[1747733539083,0.7895,2532.5,2532.4,0.31583343]
[1747733539284,0.7896,2532.2,2532.1,0.25838619]
[1747733539589,0.78957,2532.3,2532.2,1.04795619]
[1747733540088,0.78957,2532.3,2532.2,3.02248619]
[1747733541190,0.78957,2532.3,2532.2,2.7641]
[1747733543186,0.7896,2532.2,2532.1,2.99838619]
[1747733543486,2.0947,2532.2,2532.1,2.99838619]
[1747733543893,4.069305,2532.2,2532.1,2.99838619]
[1747733544193,4.069305,2532.2,2532.1,0.25838619]
[1747733544386,0.78963,2532.1,2532.0,0.2643072]
[1747733544586,2.09473,2532.1,2532.0,0.2643072]
[1747733545093,2.09473,2532.1,2532.0,3.0043072]
[1747733545390,4.069415,2532.1,2532.0,3.7939672]
[1747733545593,4.069415,2532.1,2532.0,4.3076072]
[1747733546090,4.069415,2532.1,2532.0,4.04922101]
[1747733546591,2.09473,2532.1,2532.0,4.83888101]
[1747733548694,0.78963,2532.1,2532.0,6.813566]
[1747733549494,2.764315,2532.1,2532.0,4.04922101]
[1747733549790,0.78963,2532.1,2532.0,4.720606]
[1747733549990,2.764315,2532.1,2532.0,2.74592101]
[1747733552084,2.764315,2532.1,2532.0,4.82338101]
[1747733552395,2.764315,2532.1,2532.0,4.03372101]
[1747733554199,2.764315,2532.1,2532.0,4.11858578]
[1747733554793,1.974685,2532.1,2532.0,4.90824578]
[1747733555003,0.78959,2532.3,2532.2,0.78957]
[1747733555394,0.78962,2532.2,2532.1,0.7896]
[1747733555997,0.78962,2532.2,2532.1,1.974605]
[1747733556596,0.78959,2532.3,2532.2,0.78957]
[1747733556798,0.78953,2532.5,2532.1,3.94856]
[1747733556996,0.78944,2532.7,2532.6,0.78945]
[1747733557189,3.99721,2532.8,2532.7,0.78944]
[1747733557390,3.2078,2532.8,2532.7,0.78944]
[1747733557601,3.99721,2532.8,2532.7,2.76357999]
[1747733558399,3.2078,2532.8,2532.7,2.76357999]
[1747733558594,3.99721,2532.8,2532.7,2.76357999]
[1747733558990,0.78939,2533.0,2532.7,1.97413999]
[1747733559192,0.78939,2533.0,2532.9,0.78936]
[1747733559693,2.763375,2533.0,2532.9,0.78936]
[1747733559896,0.78939,2533.0,2532.9,0.78936]
[1747733560197,0.78927,2533.3,2533.2,0.78925]
[1747733560701,0.78927,2533.3,2533.2,2.763]
[1747733561001,0.78925,2533.3,2533.2,2.763]
[1747733561504,0.79510198,2533.5,2533.4,0.78922]
[1747733561698,0.79507198,2533.5,2533.4,0.78922]
[1747733562001,1.97947698,2533.5,2533.1,3.3725]
[1747733562300,0.78932,2533.1,2533.0,4.15933]
[1747733562495,0.78932,2533.1,2533.0,2.74]
[1747733562805,5.971025,2533.1,2533.0,2.74]
[1747733563005,2.763225,2533.1,2533.0,2.74]
[1747733563204,5.971025,2533.1,2533.0,2.74]
[1747733563601,7.316525,2533.1,2533.0,2.74]
[1747733564103,0.78938,2532.9,2532.8,0.7894]
[1747733564302,0.7894,2532.9,2532.8,0.7894]
[1747733564510,0.7894,2532.9,2532.8,2.76346]
[1747733564904,0.7894,2532.9,2532.8,1.97406]
[1747733565103,0.7894,2532.9,2532.8,3.05579532]
[1747733565502,2.76346001,2532.9,2532.8,3.05579532]
[1747733566211,2.76346001,2532.9,2532.8,0.31579532]
[1747733566809,2.76346001,2532.9,2532.5,0.78948]
[1747733566810,1.97406001,2532.9,2532.5,0.78948]
[1747733567010,0.78947,2532.6,2532.5,0.78948]
[1747733567202,0.78947,2532.6,2532.5,3.52948]
[1747733567403,0.78947,2532.6,2532.5,5.503775]
[1747733568318,0.78947,2532.6,2532.5,5.81960928]
[1747733568611,0.78936,2533.0,2532.9,0.78935]
[1747733568812,2.07196,2533.0,2532.9,0.78935]
[1747733569004,3.2078,2533.1,2533.0,0.78935]
[1747733569206,2.763235,2533.1,2533.0,3.52935]
[1747733569407,4.045835,2533.1,2533.0,3.52935]
[1747733570211,4.045835,2533.1,2533.0,2.74]
[1747733570712,4.045835,2533.1,2533.0,3.52935]
[1747733570908,1.00312796,2533.5,2533.0,10.9478]
[1747733571114,5.2048,2534.9,2533.4,3.2078]
[1747733571309,0.78898,2534.2,2534.1,0.78898]
[1747733571513,0.78904,2534.0,2533.9,3.99685]
[1747733572017,0.78902,2534.1,2534.0,0.78902]
[1747733572415,0.78902,2534.1,2534.0,2.762145]
[1747733573122,0.78902,2534.1,2534.0,5.502145]
[1747733574117,0.78902,2534.1,2534.0,6.817345]
[1747733574613,0.79490101,2534.2,2534.1,0.789]
[1747733575010,0.00592101,2534.2,2534.1,0.789]
[1747733575218,0.00592101,2534.2,2534.1,2.76205]
[1747733575426,0.79489101,2534.2,2534.1,2.76205]
[1747733576326,0.00592101,2534.2,2534.1,2.76205]
[1747733576513,0.79489101,2534.2,2534.1,2.76205]
[1747733577219,0.00592101,2534.2,2534.1,2.76205]
[1747733577516,0.79489101,2534.2,2534.1,2.76205]
[1747733577712,0.79489101,2534.2,2534.1,1.97305]
[1747733578220,0.789,2534.1,2534.0,0.78901]
[1747733578423,2.0944,2534.1,2534.0,0.78901]
[1747733578622,2.0944,2534.1,2534.0,2.762135]
[1747733580323,2.0944,2534.1,2534.0,4.081635]
[1747733580721,0.78904,2534.0,2533.9,0.31563708]
[1747733580929,1.3048,2534.0,2533.9,1.10470708]
[1747733581223,4.067045,2534.0,2533.9,1.10470708]
[1747733582026,4.067045,2534.0,2533.7,0.00592101]
[1747733582027,0.7891,2533.8,2533.7,0.00592101]
[1747733582425,2.76246,2533.8,2533.7,0.79505101]
[1747733582924,2.76246,2533.8,2533.7,0.00592101]
[1747733583126,2.76246,2533.8,2533.7,0.79505101]
[1747733583526,0.6865,2533.9,2533.8,0.7891]
[1747733583721,1.3048,2534.0,2533.9,0.78907]
[1747733583920,0.78901,2534.1,2534.0,0.78904]
[1747733584124,5.31032101,2534.2,2534.1,0.789]
[1747733584425,7.28340601,2534.2,2534.1,0.789]
[1747733585528,4.52132101,2534.2,2534.1,0.789]
[1747733585736,2.10249101,2534.2,2534.1,0.789]
[1747733586531,2.10249101,2534.2,2534.1,2.76205]
[1747733587633,0.00592101,2534.2,2534.1,2.76205]
[1747733589226,0.00592101,2534.2,2534.1,3.07769451]
[1747733589830,0.00592101,2534.2,2534.1,3.76279451]
[1747733590627,1.73466,2534.6,2534.5,0.78888]
[1747733591131,0.6741,2535.1,2534.9,0.78873]
[1747733591132,0.78877,2535.0,2534.9,0.78873]
[1747733591332,0.7888,2534.9,2534.8,0.78876]
[1747733591726,0.7888,2534.9,2534.8,2.761265]
[1747733592431,1.3076,2535.0,2534.9,0.78876]
[1747733592730,0.78872,2535.1,2535.0,0.7887]
[1747733592930,0.7887,2535.2,2535.1,0.78867]
[1747733593139,6.1609911,2535.6,2535.5,0.78857]
[1747733593140,0.9817911,2535.6,2535.5,0.78857]
[1747733593429,0.7886,2535.4,2535.3,0.00592101]
[1747733593828,1.972115,2535.4,2535.3,0.79455101]
[1747733594026,4.1895911,2535.6,2535.5,0.78857]
[1747733594323,0.78857,2535.5,2535.4,1.3336]
[1747733594529,2.05157,2535.5,2535.4,1.3336]
[1747733594728,2.05157,2535.5,2535.4,3.305635]
[1747733595133,2.05157,2535.5,2535.4,2.1222]
[1747733595333,1.263,2535.5,2535.4,2.1222]
[1747733595734,1.288,2535.8,2535.4,4.5414]
[1747733596034,0.78851,2535.7,2535.6,0.78851]
[1747733596225,2.05151,2535.7,2535.6,0.78851]
[1747733597028,2.05151,2535.7,2535.6,2.76039]
[1747733597236,0.7886,2535.5,2535.4,0.78859]
[1747733597634,0.7886,2535.4,2535.3,0.00592101]
[1747733597831,2.1583,2535.4,2535.3,0.79455101]
[1747733598032,4.130415,2535.4,2535.3,0.79455101]
[1747733598538,4.130415,2535.4,2535.3,0.32140264]
[1747733598740,7.338215,2535.4,2535.3,0.32140264]
[1747733599237,10.078215,2535.4,2535.3,0.32140264]
[1747733600140,10.078215,2535.4,2535.3,0.00592101]
[1747733601137,7.338215,2535.4,2535.3,0.00592101]
[1747733601435,6.549615,2535.4,2535.3,0.00592101]
[1747733601640,3.341815,2535.4,2535.3,0.79455101]
[1747733602634,4.130415,2535.4,2535.3,0.79455101]
[1747733602835,4.130415,2535.4,2535.3,0.00592101]
[1747733603242,6.870415,2535.4,2535.3,0.00592101]
[1747733603735,0.78872,2535.0,2534.9,0.14766533]
[1747733603935,3.2078,2535.0,2534.6,0.51787271]
[1747733604242,3.99662,2534.7,2534.6,0.51787271]
[1747733604741,5.96928,2534.7,2534.6,0.51787271]
[1747733605137,10.04908,2534.7,2534.6,0.51787271]
[1747733605538,0.78888,2534.5,2534.4,0.00592101]
[1747733606146,2.761695,2534.5,2534.4,0.00592101]
[1747733606441,2.74592101,2534.9,2534.6,0.78885]
[1747733606633,0.78885,2534.6,2534.5,1.3824]
[1747733606838,0.78888,2534.5,2534.4,4.00262101]
[1747733607041,3.2078,2534.8,2534.6,0.78884]
[1747733607233,1.2997,2534.7,2534.6,0.78884]
[1747733607431,2.08854,2534.7,2534.6,0.78884]
[1747733607641,4.0612,2534.7,2534.6,0.78884]
[1747733608144,1.2997,2534.7,2534.6,2.7615]
[1747733608643,1.2997,2534.7,2534.6,3.07707468]
[1747733609242,2.08852,2534.7,2534.6,3.07707468]
[1747733610346,4.06118,2534.7,2534.6,0.31557468]
[1747733611243,3.27236,2534.7,2534.6,1.10442468]
[1747733611743,1.2997,2534.7,2534.6,1.10442468]
[1747733612241,1.2997,2534.7,2534.6,3.07708468]
[1747733612439,0.79470101,2534.9,2534.8,0.78879]
[1747733612749,0.00592101,2534.9,2534.8,0.78879]
[1747733612941,0.00592101,2534.9,2534.8,2.761295]
[1747733613141,0.79468101,2534.9,2534.8,2.761295]
[1747733613446,3.95033601,2534.9,2534.6,1.10439468]
[1747733613741,0.78882,2534.7,2534.6,0.31557468]
[1747733614039,0.78882,2534.7,2534.6,0.78885]
[1747733614249,4.78408,2534.7,2534.6,0.78885]
[1747733615445,4.78408,2534.7,2534.6,1.10441458]
[1747733615645,4.78408,2534.7,2534.6,0.31556458]
[1747733616642,2.0226,2534.7,2534.6,1.10441458]
[1747733616844,4.64551,2534.8,2534.7,0.78882]
[1747733617045,4.64551,2534.8,2534.7,2.11072]
[1747733617241,0.00592101,2534.9,2534.8,0.78879]
[1747733617446,0.00592101,2534.9,2534.8,2.11069]
[1747733617645,0.79468101,2534.9,2534.8,4.083195]
[1747733618841,0.78879,2534.8,2534.7,0.31556458]
[1747733619035,2.14839,2534.8,2534.7,0.31556458]
[1747733619242,0.78885,2534.6,2534.5,0.51787271]
[1747733619639,2.76158501,2534.6,2534.5,0.51787271]
[1747733619947,4.12118501,2534.6,2534.5,0.51787271]
[1747733620244,3.33233501,2534.6,2534.5,0.31559768]
[1747733620435,4.12118501,2534.6,2534.5,0.31559768]
[1747733620841,1.97232,2534.4,2534.0,0.51787271]
[1747733621041,0.789,2534.1,2534.0,0.51787271]
[1747733621548,4.073225,2534.1,2534.0,0.51787271]
[1747733622641,0.78907,2533.9,2533.8,2.07301101]
[1747733623353,0.78907,2533.9,2533.8,4.04629101]
[1747733623752,0.78907,2533.9,2533.8,3.25720101]
[1747733624053,2.76235001,2533.9,2533.8,0.00592101]
[1747733624245,0.78907,2533.9,2533.8,0.00592101]
[1747733624448,2.76235001,2533.9,2533.8,0.00592101]
[1747733625453,2.76235001,2533.9,2533.8,0.79502101]
[1747733625653,2.76235001,2533.9,2533.8,0.00592101]
[1747733625857,4.5189,2534.1,2533.8,1.97920101]
[1747733626053,1.7706611,2534.6,2534.1,1.97249]
[1747733626352,1.7706411,2534.6,2534.5,0.78888]
[1747733626653,0.78894,2534.4,2534.3,0.78892]
[1747733626852,0.78894,2534.4,2534.3,2.09652]
[1747733627149,0.78894,2534.4,2534.3,3.28049]
[1747733627352,0.78894,2534.4,2534.3,1.3076]
[1747733627557,0.78897,2534.2,2534.1,0.51787271]
[1747733627851,0.78897,2534.2,2534.1,2.49092271]
[1747733628054,2.13071,2534.5,2534.4,0.78891]
[1747733628354,0.78891,2534.5,2534.4,0.78891]
[1747733628651,0.78891,2534.5,2534.4,2.761725]
[1747733629668,0.78894,2534.3,2534.2,1.2665]
[1747733630047,0.78894,2534.3,2534.2,3.23947]
[1747733630447,0.78894,2534.3,2534.2,4.02844]
[1747733631157,0.78894,2534.3,2534.2,3.23947]
[1747733631356,0.78894,2534.3,2534.2,4.02844]
[1747733632162,1.3084,2534.5,2534.2,3.23947]
[1747733632450,0.78888,2534.5,2534.4,0.78891]
[1747733632675,1.31432101,2534.9,2534.8,0.78879]
[1747733633053,1.31432101,2534.9,2534.8,2.761295]
[1747733633961,2.10309101,2534.9,2534.8,2.761295]
[1747733634452,2.10309101,2534.9,2534.8,3.07688447]
[1747733636960,0.79469101,2534.9,2534.8,3.07688447]
[1747733637660,0.00592101,2534.9,2534.8,3.07688447]
[1747733637862,0.79468101,2534.9,2534.8,3.07688447]
[1747733638160,0.00592101,2534.9,2534.8,3.07688447]
[1747733639162,0.79468101,2534.9,2534.8,3.07688447]
[1747733640058,0.00592101,2534.9,2534.8,3.07688447]
[1747733641155,0.00592101,2534.9,2534.8,7.12238447]
[1747733642464,0.00592101,2534.9,2534.8,7.45873757]
[1747733642862,0.79468101,2534.9,2534.8,6.66994757]
[1747733643064,0.79468101,2534.9,2534.8,7.45873757]
[1747733643361,0.79468101,2534.9,2534.8,4.71873757]
[1747733643756,0.00592101,2534.9,2534.8,4.71873757]
[1747733644268,0.00592101,2534.9,2534.8,7.45873757]
[1747733644953,0.79468101,2534.9,2534.8,5.36444757]
[1747733645260,0.79468101,2534.9,2534.8,4.18073257]
[1747733645561,0.00592101,2534.9,2534.8,4.18073257]
[1747733645755,0.00592101,2534.9,2534.8,6.15323757]
[1747733646262,3.53468101,2534.9,2534.8,4.68753757]
[1747733646764,3.53468101,2534.9,2534.8,3.89874757]
[1747733647062,3.53468101,2534.9,2534.8,3.41323757]
[1747733647361,0.79468101,2534.9,2534.8,3.07688447]
[1747733647762,5.97498601,2534.9,2534.8,0.31558947]
[1747733648662,2.85205078,2534.9,2534.8,0.31558947]
[1747733648857,0.87954578,2534.9,2534.8,0.31558947]
[1747733649054,2.85205078,2534.9,2534.8,0.31558947]
[1747733649666,2.76718601,2534.9,2534.8,0.31558947]
[1747733650172,2.76718601,2534.9,2534.8,1.10437947]
[1747733650365,1.97842601,2534.9,2534.8,1.10437947]
[1747733650867,0.79468101,2534.9,2534.8,1.10437947]
[1747733651060,0.00592101,2534.9,2534.8,3.07688447]
[1747733651565,5.97498601,2534.9,2534.8,0.31558947]
[1747733652265,0.78888,2534.5,2534.4,0.3363531]
[1747733652474,0.78888,2534.5,2534.4,1.1252631]
[1747733652866,2.761695,2534.5,2534.4,1.1252631]
[1747733653173,2.761695,2534.5,2534.4,0.3363531]
[1747733654069,1.3114,2534.6,2534.5,0.78888]
[1747733654272,0.78888,2534.5,2534.4,4.8688]
[1747733654568,2.10026,2534.6,2534.5,0.78888]
[1747733654769,4.073035,2534.6,2534.5,0.78888]
[1747733655673,2.10026,2534.6,2534.5,0.78888]
[1747733656366,0.78888,2534.5,2534.4,0.3363531]
[1747733656572,5.25358,2534.5,2534.4,0.3363531]
[1747733656765,7.226395,2534.5,2534.4,0.3363531]
[1747733657166,7.226395,2534.5,2534.4,3.0763531]
[1747733658073,7.226395,2534.5,2534.4,2.74]
[1747733658372,0.78891,2534.4,2534.3,0.3363531]
[1747733658575,2.16101,2534.4,2534.3,0.3363531]
[1747733658773,4.1339,2534.4,2534.3,0.3363531]
[1747733659574,0.78894,2534.3,2534.2,1.1253231]
[1747733659876,5.45031001,2534.3,2534.2,1.1253231]
[1747733660478,5.45031001,2534.3,2534.2,0.3363531]
[1747733660978,5.45031001,2534.3,2534.2,1.1253231]
[1747733662279,5.45031001,2534.3,2534.2,0.3363531]
[1747733663076,0.78897,2534.2,2534.1,1.1253531]
[1747733663281,2.16177,2534.2,2534.1,1.1253531]
[1747733663482,2.16177,2534.2,2534.1,3.0984031]
[1747733663780,2.16177,2534.2,2534.1,2.3094031]
[1747733664076,2.16177,2534.2,2534.1,0.3363531]
[1747733664077,7.34262,2534.2,2534.1,0.3363531]
[1747733664981,0.78904,2534.0,2533.9,0.25246797]
[1747733665486,2.762245,2534.0,2533.9,0.25246797]
[1747733666178,1.973205,2534.0,2533.9,1.04153797]
[1747733666382,2.762245,2534.0,2533.9,0.25246797]
[1747733667482,0.78907,2533.9,2533.8,1.04747898]
[1747733667779,0.78907,2533.9,2533.8,1.04748898]
[1747733667780,2.08957,2533.9,2533.8,1.04748898]
[1747733668082,2.08957,2533.9,2533.8,3.02076898]
[1747733669094,2.08957,2533.9,2533.8,3.33643079]
[1747733670585,2.08957,2533.9,2533.8,2.54733079]
[1747733670783,4.06285001,2533.9,2533.8,0.00592101]
[1747733670986,1.3005,2533.9,2533.8,0.79502101]
[1747733671288,2.0632,2534.2,2534.1,0.789]
[1747733671488,0.789,2534.2,2534.1,0.789]
[1747733671689,2.76205,2534.2,2534.1,0.789]
[1747733671881,0.789,2534.2,2534.1,0.789]
[1747733672185,0.789,2534.2,2534.1,2.76205]
[1747733672386,0.789,2534.2,2534.1,4.08885]
[1747733672886,0.789,2534.2,2534.1,0.3156846]
[1747733673385,0.789,2534.2,2534.1,3.0777346]
[1747733673689,2.76205,2534.2,2534.1,0.3156846]
[1747733674386,0.789,2534.2,2534.1,0.3156846]
[1747733676492,0.789,2534.1,2534.0,0.78901]
[1747733676790,2.1099,2534.1,2534.0,0.78901]
[1747733676986,2.1099,2534.1,2534.0,1.973125]
[1747733677487,2.1099,2534.1,2534.0,2.762165]
[1747733678195,2.1099,2534.1,2534.0,0.78904]
[1747733678396,0.78902,2534.2,2534.1,0.78897]
[1747733678588,0.78902,2534.2,2534.1,2.11437]
[1747733678788,2.76207,2534.2,2534.1,2.11437]
[1747733679086,0.78895,2534.3,2534.2,0.78894]
[1747733679489,2.76192001,2534.3,2534.2,0.78894]
[1747733679896,0.78895,2534.3,2534.2,2.76191]
[1747733680097,0.78895,2534.3,2534.2,3.07755437]
[1747733682798,0.78895,2534.3,2534.2,2.28861437]
[1747733683296,2.76192001,2534.3,2534.2,0.31564437]
[1747733683496,2.76192001,2534.3,2534.2,0.56791124]
[1747733684198,5.50192001,2534.3,2534.2,0.56791124]
[1747733685199,2.76192001,2534.3,2534.2,0.31564437]
[1747733685899,2.76192001,2534.3,2534.2,1.10461437]
[1747733686995,2.76192001,2534.3,2534.2,0.31564437]
[1747733687601,2.76192001,2534.3,2534.2,0.56791124]
[1747733690197,5.50192001,2534.3,2534.2,0.56791124]
[1747733691299,2.76192001,2534.3,2534.2,0.56791124]
[1747733691699,2.76192001,2534.3,2534.2,1.35688124]
[1747733691899,0.78895,2534.3,2534.2,1.35688124]
[1747733692103,0.78895,2534.3,2534.2,5.32185124]
[1747733693105,0.78895,2534.3,2534.2,5.06958437]
[1747733693806,0.78895,2534.3,2534.2,4.28061437]
[1747733695003,0.78895,2534.3,2534.2,2.64407558]
[1747733695703,0.78895,2534.3,2534.2,1.99827558]
[1747733697007,2.76192001,2534.3,2534.2,1.99827558]
[1747733698007,2.76192001,2534.3,2534.2,0.65207558]
[1747733699007,2.76192001,2534.3,2534.2,1.44104558]
[1747733699208,2.76192001,2534.3,2534.2,2.80474558]
[1747733699405,0.78895,2534.3,2534.2,4.77771558]
[1747733700109,2.2592911,2534.5,2534.2,4.77771558]
[1747733700307,0.9817911,2534.5,2534.4,0.78891]
[1747733700807,0.9817911,2534.5,2534.4,3.442025]
[1747733700997,0.9817911,2534.5,2534.4,4.797225]
[1747733701195,0.9817911,2534.5,2534.4,7.537225]
[1747733701907,3.7434861,2534.5,2534.4,2.74]
[1747733702100,5.6443861,2534.5,2534.4,2.74]
[1747733702303,0.78894,2534.3,2534.2,0.31564437]
[1747733702502,0.78897,2534.2,2534.1,1.4623021]
[1747733702716,0.78894,2534.4,2534.3,0.78891]
[1747733702901,0.78894,2534.3,2534.2,2.14415]
[1747733703410,0.78897,2534.2,2534.1,3.4133221]
[1747733703608,5.25267,2534.2,2534.1,3.4133221]
[1747733704009,7.22572,2534.2,2534.1,3.4133221]
[1747733704205,9.96572,2534.2,2534.1,0.92257237]
[1747733704410,4.78487,2534.2,2534.1,0.56491455]
[1747733704611,6.75792,2534.2,2534.1,0.56491455]
[1747733704912,7.7397111,2534.2,2534.1,0.56491455]
[1747733705306,4.9997111,2534.2,2534.1,0.56491455]
[1747733709916,8.2075111,2534.2,2534.1,0.56491455]
[1747733710118,10.9475111,2534.2,2534.1,0.56491455]
[1747733710931,14.96572,2534.2,2534.1,0.56491455]
[1747733711523,9.96572,2534.2,2534.1,0.56491455]
[1747733712528,9.17675,2534.2,2534.1,0.789]
[1747733712729,8.70982,2534.2,2534.1,0.789]
[1747733713215,0.789,2534.1,2534.0,2.66712]
[1747733713418,0.789,2534.1,2534.0,1.8781]
[1747733713628,0.789,2534.1,2534.0,4.41613115]
[1747733714029,0.789,2534.1,2534.0,3.79253115]
[1747733714227,3.436,2534.1,2534.0,2.53803115]
[1747733714421,5.409125,2534.1,2534.0,2.53803115]
[1747733714725,5.409125,2534.1,2534.0,0.56490615]
[1747733716428,3.99679,2534.2,2534.0,0.56490615]
[1747733716628,3.2078,2534.2,2534.1,0.789]
[1747733716827,3.2078,2534.2,2534.1,1.423]
[1747733717027,3.2078,2534.2,2534.1,3.39605]
[1747733717229,3.2078,2534.2,2534.1,3.96095615]
[1747733717831,3.99677,2534.2,2534.1,3.17195615]
[1747733718035,2.07867,2534.2,2534.1,1.19890615]
[1747733718229,2.07867,2534.2,2534.1,0.64806546]
[1747733719238,4.72732,2534.2,2534.1,0.64806546]
[1747733720135,4.72732,2534.2,2534.1,0.31565588]
[1747733721537,1.61653226,2534.3,2534.1,0.31565588]
[1747733721739,2.80907,2534.2,2534.1,0.31565588]
[1747733722338,4.78212,2534.2,2534.1,0.31565588]
[1747733723231,0.6863,2534.2,2534.1,1.10465588]
[1747733723524,6.48134946,2534.5,2534.1,1.10465588]
[1747733723525,1.2886,2534.4,2534.1,3.62560588]
[1747733723731,1.30129946,2534.5,2534.4,0.78891]